fUSD/lending_fUSD_20240104
["ID","MTS","AMOUNT","RATE_DAILY","PERIOD"]
[310170355,1704387054377,-500.0,0.00033698,2]
[310170356,1704387054387,-500.0,0.00033698,2]
[310170357,1704387054398,-209.41017055,0.00033698,2]
[310170358,1704387054408,-500.0,0.00033698,2]
[310170359,1704387054417,-500.0,0.00033698,2]
[310170360,1704387054426,-500.0,0.00033698,2]
[310170361,1704387054436,-500.0,0.00033698,2]
[310170362,1704387054446,-556.24924533,0.00033698,2]
[310170363,1704387054456,-500.0,0.00033698,2]
[310170364,1704387054465,-500.0,0.00033698,2]
[310170365,1704387054475,-500.0,0.00033698,2]
[310170366,1704387054486,-500.0,0.00033698,2]
[310170367,1704387054495,-500.0,0.00033698,2]
[310170368,1704387054508,-500.0,0.00033698,2]
[310170369,1704387054518,-500.0,0.00033698,2]
[310170370,1704387054527,-500.0,0.00033698,2]
[310170371,1704387054537,-500.0,0.00033698,2]
[310170372,1704387054546,-500.0,0.00033698,2]
[310170373,1704387054555,-500.0,0.00033698,2]
[310170374,1704387054565,-500.0,0.00033698,2]
[310170375,1704387054574,-500.0,0.00033698,2]
[310170376,1704387054584,-500.0,0.00033698,2]
[310170377,1704387054593,-500.0,0.00033698,2]
[310170378,1704387054603,-500.0,0.00033698,2]
[310170379,1704387054612,-500.0,0.00033698,2]
[310170380,1704387054621,-500.0,0.00033698,2]
[310170381,1704387054631,-500.0,0.00033698,2]
[310170382,1704387054640,-500.0,0.00033698,2]
[310170383,1704387054650,-500.0,0.00033698,2]
[310170384,1704387054659,-500.0,0.00033698,2]
[310170385,1704387054668,-6064.13,0.00033698,2]
[310170386,1704387054678,-500.0,0.00033698,2]
[310170387,1704387054687,-500.0,0.00033698,2]
[310170388,1704387054697,-291.96370011,0.00033698,2]
[310170389,1704387054707,-556.14,0.00033698,2]
[310170390,1704387054717,-500.0,0.00033698,2]
[310170391,1704387054726,-500.0,0.00033698,2]
[310170392,1704387054735,-500.0,0.00033698,2]
[310170393,1704387054745,-866.85,0.00033698,2]
[310170394,1704387054754,-440.97285631,0.00033698,2]
[310170395,1704387054763,-500.0,0.00033698,2]
[310170396,1704387054772,-500.0,0.00033698,2]
[310170397,1704387054782,-519.6,0.00033698,2]
[310170398,1704387054791,-1348.96,0.00033698,2]
[310170399,1704387054800,-500.0,0.00033698,2]
[310170400,1704387054810,-1142.06,0.00033698,2]
[310170401,1704387054819,-965.52,0.00033698,2]
[310170402,1704387054829,-500.0,0.00033698,2]
[310170403,1704387054840,-2324.63,0.00033698,2]
[310170404,1704387054850,-500.0,0.00033698,2]
[310170405,1704387054860,-1649.27,0.00033698,2]
[310170406,1704387054871,-500.0,0.00033698,2]
[310170407,1704387054880,-500.0,0.00033698,2]
[310170408,1704387054890,-500.0,0.00033698,2]
[310170409,1704387054899,-500.0,0.00033698,2]
[310170410,1704387054909,-4041.42,0.00033698,2]
[310170411,1704387054918,-3512.08,0.00033698,2]
[310170412,1704387054928,-385.78157437,0.00033698,2]
[310170413,1704387054937,-500.0,0.00033698,2]
[310170414,1704387054946,-500.0,0.00033698,2]
[310170415,1704387054956,-500.0,0.00033698,2]
[310170416,1704387054966,-1571.18,0.00033698,2]
[310170417,1704387054976,-790.79,0.00033698,2]
[310170418,1704387054985,-1096.78,0.00033698,2]
[310170419,1704387054994,-500.0,0.00033698,2]
[310170420,1704387055004,-500.0,0.00033698,2]
[310170421,1704387055013,-500.0,0.00033698,2]
[310170422,1704387055022,-1597.25,0.00033698,2]
[310170423,1704387055032,-500.0,0.00033698,2]
[310170424,1704387055041,-500.0,0.00033698,2]
[310170425,1704387055051,-500.0,0.00033698,2]
[310170426,1704387055060,-2242.23,0.00033698,2]
[310170427,1704387055069,-500.0,0.00033698,2]
[310170428,1704387055078,-500.0,0.00033698,2]
[310170429,1704387055087,-500.0,0.00033698,2]
[310170430,1704387055096,-500.0,0.00033698,2]
[310170431,1704387055107,-500.0,0.00033698,2]
[310170432,1704387055116,-552.0188923,0.00033698,2]
[310170433,1704387055126,-1243.11,0.00033698,2]
[310170434,1704387055136,-1120.22,0.00033698,2]
[310170435,1704387055145,-685.07,0.00033698,2]
[310170436,1704387055155,-500.0,0.00033698,2]
[310170437,1704387055166,-500.0,0.00033698,2]
[310170438,1704387055175,-500.0,0.00033698,2]
[310170439,1704387055184,-277.72162354,0.00033698,2]
[310170440,1704387055194,-500.0,0.00033698,2]
[310170441,1704387055204,-1459.02,0.00033698,2]
[310170442,1704387055213,-3337.4,0.00033698,2]
[310170443,1704387055224,-587.56,0.00033698,2]
[310170444,1704387055234,-500.0,0.00033698,2]
[310170445,1704387055243,-500.0,0.00033698,2]
[310170446,1704387055253,-500.0,0.00033698,2]
[310170447,1704387055263,-1169.43,0.00033698,2]
[310170448,1704387055275,-500.0,0.00033698,2]
[310170449,1704387055285,-500.0,0.00033698,2]
[310170450,1704387055294,-500.0,0.00033698,2]
[310170451,1704387055304,-977.43,0.00033698,2]
[310170452,1704387055314,-1254.68,0.00033698,2]
[310170453,1704387055323,-9381.09,0.00033698,2]
[310170454,1704387055332,-500.0,0.00033698,2]
[310170455,1704387055342,-468.27357542,0.00033698,2]
[310170456,1704387055353,-3545.15,0.00033698,2]
[310170457,1704387055362,-500.0,0.00033698,2]
[310170458,1704387055372,-500.0,0.00033698,2]
[310170459,1704387055381,-500.0,0.00033698,2]
[310170460,1704387055393,-500.0,0.00033698,2]
[310170461,1704387055403,-500.0,0.00033698,2]
[310170462,1704387055413,-739.42,0.00033698,2]
[310170463,1704387055422,-500.0,0.00033698,2]
[310170464,1704387055432,-500.0,0.00033698,2]
[310170465,1704387055442,-500.0,0.00033698,2]
[310170466,1704387055451,-1879.53,0.00033698,2]
[310170467,1704387055460,-1434.27,0.00033698,2]
[310170468,1704387055470,-500.0,0.00033698,2]
[310170469,1704387055480,-500.0,0.00033698,2]
[310170470,1704387055490,-500.0,0.00033698,2]
[310170471,1704387055501,-588.68,0.00033698,2]
[310170472,1704387055511,-500.0,0.00033698,2]
[310170473,1704387055521,-330.53619062,0.00033698,2]
[310170474,1704387055531,-1466.29,0.00033698,2]
[310170475,1704387055541,-500.0,0.00033698,2]
[310170476,1704387055551,-500.0,0.00033698,2]
[310170477,1704387055560,-500.0,0.00033698,2]
[310170478,1704387055570,-500.0,0.00033698,2]
[310170479,1704387055580,-500.0,0.00033698,2]
[310170480,1704387055590,-500.0,0.00033698,2]
[310170481,1704387055600,-500.0,0.00033698,2]
[310170482,1704387055610,-992.03,0.00033698,2]
[310170483,1704387055620,-500.0,0.00033698,2]
[310170484,1704387055630,-500.0,0.00033698,2]
[310170485,1704387055641,-1033.59,0.00033698,2]
[310170486,1704387055650,-500.0,0.00033698,2]
[310170487,1704387055660,-500.0,0.00033698,2]
[310170488,1704387055671,-308.07020837,0.00033698,2]
[310170489,1704387055682,-1201.04,0.00033698,2]
[310170490,1704387055692,-500.0,0.00033698,2]
[310170491,1704387055702,-500.0,0.00033698,2]
[310170492,1704387055712,-500.0,0.00033698,2]
[310170493,1704387055721,-500.0,0.00033698,2]
[310170494,1704387055731,-446.00957373,0.00033698,2]
[310170495,1704387055741,-500.0,0.00033698,2]
[310170496,1704387055751,-500.0,0.00033698,2]
[310170497,1704387055762,-4171.26,0.00033698,2]
[310170498,1704387055771,-500.0,0.00033698,2]
[310170499,1704387055781,-500.0,0.00033698,2]
[310170500,1704387055791,-500.0,0.00033698,2]
[310170501,1704387055801,-2166.82,0.00033698,2]
[310170502,1704387055811,-2349.11,0.00033698,2]
[310170503,1704387055821,-523.86,0.00033698,2]
[310170504,1704387055831,-500.0,0.00033698,2]
[310170505,1704387055841,-500.0,0.00033698,2]
[310170506,1704387055851,-692.86,0.00033698,2]
[310170507,1704387055861,-754.91,0.00033698,2]
[310170508,1704387055871,-5441.26,0.00033698,2]
[310170509,1704387055881,-2546.5,0.00033698,2]
[310170510,1704387055891,-653.38,0.00033698,2]
[310170511,1704387055901,-408.53819273,0.00033698,2]
[310170512,1704387055911,-588.1,0.00033698,2]
[310170513,1704387055920,-518.48,0.00033698,2]
[310170514,1704387055930,-500.0,0.00033698,2]
[310170515,1704387055941,-1807.01,0.00033698,2]
[310170516,1704387055951,-1302.38,0.00033698,2]
[310170517,1704387055961,-500.0,0.00033698,2]
[310170518,1704387055971,-500.0,0.00033698,2]
[310170519,1704387055980,-500.0,0.00033698,2]
[310170520,1704387055990,-2560.04,0.00033698,2]
[310170521,1704387056000,-500.0,0.00033698,2]
[310170522,1704387056010,-461.04623072,0.00033698,2]
[310170523,1704387056019,-500.0,0.00033698,2]
[310170524,1704387056029,-779.87,0.00033698,2]
[310170525,1704387056039,-500.0,0.00033698,2]
[310170526,1704387056049,-734.27,0.00033698,2]
[310170527,1704387056059,-1365.24,0.00033698,2]
[310170528,1704387056069,-870.65,0.00033698,2]
[310170529,1704387056078,-1231.92,0.00033698,2]
[310170530,1704387056088,-2217.69,0.00033698,2]
[310170531,1704387056098,-500.0,0.00033698,2]
[310170532,1704387056108,-500.0,0.00033698,2]
[310170533,1704387056119,-500.0,0.00033698,2]
[310170534,1704387056129,-1032.63,0.00033698,2]
[310170535,1704387056138,-1017.62,0.00033698,2]
[310170536,1704387056149,-534.29,0.00033698,2]
[310170537,1704387056159,-906.71,0.00033698,2]
[310170538,1704387056168,-500.0,0.00033698,2]
[310170539,1704387056178,-500.0,0.00033698,2]
[310170540,1704387056188,-596.31,0.00033698,2]
[310170541,1704387056198,-2137.75,0.00033698,2]
[310170542,1704387056208,-500.0,0.00033698,2]
[310170543,1704387056218,-3323.94,0.00033698,2]
[310170544,1704387056228,-269.59476247,0.00033698,2]
[310170545,1704387056239,-509.24,0.00033698,2]
[310170546,1704387056249,-618.62,0.00033698,2]
[310170547,1704387056259,-500.0,0.00033698,2]
[310170548,1704387056269,-635.64,0.00033698,2]
[310170549,1704387056279,-500.0,0.00033698,2]
[310170550,1704387056289,-7113.29,0.00033698,2]
[310170551,1704387056299,-3513.86,0.00033698,2]
[310170552,1704387056311,-500.0,0.00033698,2]
[310170553,1704387056322,-500.0,0.00033698,2]
[310170554,1704387056331,-1511.06,0.00033698,2]
[310170555,1704387056342,-500.0,0.00033698,2]
[310170556,1704387056354,-1218.23,0.00033698,2]
[310170557,1704387056365,-688.17,0.00033698,2]
[310170558,1704387056376,-8136.36,0.00033698,2]
[310170559,1704387056387,-650.31,0.00033698,2]
[310170560,1704387056401,-500.0,0.00033698,2]
[310170561,1704387056410,-500.0,0.00033698,2]
[310170562,1704387056423,-500.0,0.00033698,2]
[310170563,1704387056433,-662.77,0.00033698,2]
[310170564,1704387056443,-583.86,0.00033698,2]
[310170565,1704387056454,-500.0,0.00033698,2]
[310170566,1704387056464,-694.23,0.00033698,2]
[310170567,1704387056473,-500.0,0.00033698,2]
[310170568,1704387056484,-500.0,0.00033698,2]
[310170569,1704387056493,-500.0,0.00033698,2]
[310170570,1704387056504,-3401.65,0.00033698,2]
[310170571,1704387056514,-500.0,0.00033698,2]
[310170572,1704387056523,-2434.82,0.00033698,2]
[310170573,1704387056532,-500.0,0.00033698,2]
[310170574,1704387056542,-500.0,0.00033698,2]
[310170575,1704387056553,-500.0,0.00033698,2]
[310170576,1704387056563,-500.0,0.00033698,2]
[310170577,1704387056573,-500.0,0.00033698,2]
[310170578,1704387056583,-1142.39,0.00033698,2]
[310170579,1704387056593,-1301.86,0.00033698,2]
[310170580,1704387056604,-500.0,0.00033698,2]
[310170581,1704387056614,-1696.03,0.00033698,2]
[310170582,1704387056623,-500.0,0.00033698,2]
[310170583,1704387056633,-500.0,0.00033698,2]
[310170584,1704387056643,-500.0,0.00033698,2]
[310170585,1704387056652,-511.03,0.00033698,2]
[310170586,1704387056662,-500.0,0.00033698,2]
[310170587,1704387056671,-500.0,0.00033698,2]
[310170588,1704387056681,-1500.08,0.00033698,2]
[310170589,1704387056691,-1916.77,0.00033698,2]
[310170590,1704387056702,-500.0,0.00033698,2]
[310170591,1704387056713,-1224.87,0.00033698,2]
[310170592,1704387056723,-500.0,0.00033698,2]
[310170593,1704387056734,-500.0,0.00033698,2]
[310170594,1704387056744,-500.0,0.00033698,2]
[310170595,1704387056755,-675.56,0.00033698,2]
[310170596,1704387056767,-500.0,0.00033698,2]
[310170597,1704387056777,-1372.24,0.00033698,2]
[310170598,1704387056787,-500.0,0.00033698,2]
[310170599,1704387056797,-1233.69,0.00033698,2]
[310170600,1704387056807,-500.0,0.00033698,2]
[310170601,1704387056818,-704.97,0.00033698,2]
[310170602,1704387056827,-500.0,0.00033698,2]
[310170603,1704387056837,-500.0,0.00033698,2]
[310170604,1704387056847,-1271.98,0.00033698,2]
[310170605,1704387056858,-1984.85,0.00033698,2]
[310170606,1704387056868,-500.0,0.00033698,2]
[310170607,1704387056878,-2344.08,0.00033698,2]
[310170608,1704387056889,-1111.22,0.00033698,2]
[310170609,1704387056899,-500.0,0.00033698,2]
[310170610,1704387056910,-1000.0,0.000337,2]
[310170611,1704387056920,-171.86,0.00033709,2]
[310170612,1704387056929,-434.12,0.00033732,2]
[310170613,1704387056939,-236.18,0.00033764,2]
[310170614,1704387056950,-161.73,0.00033773,2]
[310170615,1704387056961,-500.0,0.000338,3]
[310170616,1704387056972,-153.25,0.00033814,2]
[310170617,1704387056981,-339.01516017,0.00033872,2]
[310170618,1704387056991,-3430.33082647,0.00033898,6]
[310170619,1704387057001,-236.18,0.00033938,2]
[310170620,1704387057011,-882.09623823,0.0003395,6]
[310170621,1704387057022,-500.0,0.00033971,2]
[310170622,1704387057032,-1121.11,0.00033971,2]
[310170623,1704387057042,-500.0,0.00033971,2]
[310170624,1704387057052,-295003.78557077,0.00033972,3]
[310170625,1704387057619,-439.87,0.00033972,3]
[310170626,1704387057657,-268.569,0.00033972,3]
[310170627,1704387057670,-665.08,0.00033972,3]
[310170628,1704387057687,-430.51920002,0.00033972,3]
[310170629,1704387057699,-1627.223,0.00033972,3]
[310170630,1704387057712,-506.55375745,0.00033972,3]
[310170631,1704387057738,-3161.73199585,0.00033972,3]
[310170632,1704387057750,-1067.57473216,0.00033972,3]
[310170633,1704387058093,-1295.71,0.00032876,2]
[310170634,1704387058103,-801.58750002,0.0003315,2]
[310170635,1704387058366,-494.12249998,0.0003315,2]
[310170636,1704387058377,-274.56449768,0.00033424,2]
[310170637,1704387058391,-589.021,0.00033424,2]
[310170638,1704387058569,-432.12450232,0.00033424,2]
[310170639,1704387058580,-1295.71,0.00033698,2]
[310170640,1704387058591,-275.12973937,0.00033972,3]
[310170641,1704387058613,-57766.178665,0.00033972,3]
[310170642,1704387058705,-30061.59862168,0.00033972,3]
[310170643,1704387058714,-500.0,0.00033972,2]
[310170644,1704387058724,-500.0,0.00033972,2]
[310170645,1704387058734,-500.0,0.00033972,2]
[310170646,1704387058743,-500.0,0.00033972,2]
[310170647,1704387058753,-638.59,0.00033972,2]
[310170648,1704387058762,-500.0,0.00033972,2]
[310170649,1704387058772,-500.0,0.00033972,2]
[310170650,1704387058782,-500.0,0.00033972,2]
[310170651,1704387058791,-500.0,0.00033972,2]
[310170652,1704387058801,-500.0,0.00033972,2]
[310170653,1704387058810,-587.46,0.00033972,2]
[310170654,1704387058820,-500.0,0.00033972,2]
[310170655,1704387058829,-500.0,0.00033972,2]
[310170656,1704387058838,-500.0,0.00033972,2]
[310170657,1704387058848,-629.31,0.00033972,2]
[310170658,1704387058859,-500.0,0.00033972,2]
[310170659,1704387058869,-500.0,0.00033972,2]
[310170660,1704387058879,-463.77289751,0.00033972,2]
[310170661,1704387058889,-500.0,0.00033972,2]
[310170662,1704387058899,-234.24190197,0.00033972,2]
[310170663,1704387058908,-597.15922262,0.00033972,2]
[310170664,1704387058917,-175.39297024,0.00033972,2]
[310170665,1704387058927,-500.0,0.00033972,2]
[310170666,1704387058937,-500.0,0.00033972,2]
[310170667,1704387058948,-500.0,0.00033972,2]
[310170668,1704387058960,-248.01184388,0.00033972,2]
[310170669,1704387058969,-655.43,0.00033972,2]
[310170670,1704387058979,-500.0,0.00033972,2]
[310170671,1704387058990,-500.0,0.00033972,2]
[310170672,1704387059000,-500.0,0.00033972,2]
[310170673,1704387059010,-500.0,0.00033972,2]
[310170674,1704387059019,-468.5027169,0.00033972,2]
[310170675,1704387059029,-500.0,0.00033972,2]
[310170676,1704387059038,-724.09,0.00033972,2]
[310170677,1704387059048,-500.0,0.00033972,2]
[310170678,1704387059057,-500.0,0.00033972,2]
[310170679,1704387059067,-500.0,0.00033972,2]
[310170680,1704387059077,-500.0,0.00033972,2]
[310170681,1704387059086,-500.0,0.00033972,2]
[310170682,1704387059095,-500.0,0.00033972,2]
[310170683,1704387059104,-500.0,0.00033972,2]
[310170684,1704387059114,-500.0,0.00033972,2]
[310170685,1704387059123,-500.0,0.00033972,2]
[310170686,1704387059133,-503.03419502,0.00033972,2]
[310170687,1704387059143,-466.21208689,0.00033972,2]
[310170688,1704387059152,-587.87,0.00033972,2]
[310170689,1704387059162,-500.0,0.00033972,2]
[310170690,1704387059172,-500.0,0.00033972,2]
[310170691,1704387059182,-500.0,0.00033972,2]
[310170692,1704387059191,-764.61,0.00033972,2]
[310170693,1704387059201,-500.0,0.00033972,2]
[310170694,1704387059210,-500.0,0.00033972,2]
[310170695,1704387059221,-500.0,0.00033972,2]
[310170696,1704387059231,-214.83,0.00033972,2]
[310170697,1704387059244,-500.0,0.00033972,2]
[310170698,1704387059276,-500.0,0.00033972,2]
[310170699,1704387059286,-500.0,0.00033972,2]
[310170700,1704387059296,-500.0,0.00033972,2]
[310170701,1704387059307,-500.0,0.00033972,2]
[310170702,1704387059317,-500.0,0.00033972,2]
[310170703,1704387059327,-500.0,0.00033972,2]
[310170704,1704387059338,-586.51,0.00033972,2]
[310170705,1704387059348,-500.0,0.00033972,2]
[310170706,1704387059359,-500.0,0.00033972,2]
[310170707,1704387059369,-500.0,0.00033972,2]
[310170708,1704387059379,-500.0,0.00033972,2]
[310170709,1704387059390,-500.0,0.00033972,2]
[310170710,1704387059404,-500.0,0.00033972,2]
[310170711,1704387059413,-500.0,0.00033972,2]
[310170712,1704387059423,-500.0,0.00033972,2]
[310170713,1704387059432,-500.0,0.00033972,2]
[310170714,1704387059442,-500.0,0.00033972,2]
[310170715,1704387059451,-500.0,0.00033972,2]
[310170716,1704387059462,-500.0,0.00033972,2]
[310170717,1704387059473,-500.0,0.00033972,2]
[310170718,1704387059482,-500.0,0.00033972,2]
[310170719,1704387059494,-500.0,0.00033972,2]
[310170720,1704387059504,-500.0,0.00033972,2]
[310170721,1704387059514,-500.0,0.00033972,2]
[310170722,1704387059523,-500.0,0.00033972,2]
[310170723,1704387059532,-396.55221071,0.00033972,2]
[310170724,1704387059542,-500.0,0.00033972,2]
[310170725,1704387059551,-500.0,0.00033972,2]
[310170726,1704387059561,-500.0,0.00033972,2]
[310170727,1704387059571,-500.0,0.00033972,2]
[310170728,1704387059581,-500.0,0.00033972,2]
[310170729,1704387059590,-500.0,0.00033972,2]
[310170730,1704387059601,-500.0,0.00033972,2]
[310170731,1704387059611,-500.0,0.00033972,2]
[310170732,1704387059620,-559.04,0.00033972,2]
[310170733,1704387059630,-500.0,0.00033972,2]
[310170734,1704387059640,-500.0,0.00033972,2]
[310170735,1704387059650,-500.0,0.00033972,2]
[310170736,1704387059660,-642.06029573,0.00033972,2]
[310170737,1704387059672,-500.0,0.00033972,2]
[310170738,1704387059682,-500.0,0.00033972,2]
[310170739,1704387059691,-646.2819228,0.00033972,2]
[310170740,1704387059700,-500.0,0.00033972,2]
[310170741,1704387059710,-500.0,0.00033972,2]
[310170742,1704387059720,-500.0,0.00033972,2]
[310170743,1704387059730,-500.0,0.00033972,2]
[310170744,1704387059739,-500.0,0.00033972,2]
[310170745,1704387059749,-623.05533021,0.00033972,2]
[310170746,1704387059758,-500.0,0.00033972,2]
[310170747,1704387059768,-500.0,0.00033972,2]
[310170748,1704387059777,-500.0,0.00033972,2]
[310170749,1704387059787,-500.0,0.00033972,2]
[310170750,1704387059795,-500.0,0.00033972,2]
[310170751,1704387059805,-500.0,0.00033972,2]
[310170752,1704387059814,-500.0,0.00033972,2]
[310170753,1704387059823,-500.0,0.00033972,2]
[310170754,1704387059833,-500.0,0.00033972,2]
[310170755,1704387059842,-500.0,0.00033972,2]
[310170756,1704387059851,-269.82167536,0.00033972,2]
[310170757,1704387059866,-500.0,0.00033972,2]
[310170758,1704387059875,-500.0,0.00033972,2]
[310170759,1704387059885,-500.0,0.00033972,2]
[310170760,1704387059894,-500.0,0.00033972,2]
[310170761,1704387059903,-500.0,0.00033972,2]
[310170762,1704387059913,-500.0,0.00033972,2]
[310170763,1704387059975,-500.0,0.00033972,2]
[310170764,1704387059986,-540.27,0.00033972,2]
[310170765,1704387059996,-466.9,0.00033972,2]
[310170766,1704387060005,-500.0,0.00033972,2]
[310170767,1704387060014,-500.0,0.00033972,2]
[310170768,1704387060023,-500.0,0.00033972,2]
[310170769,1704387060032,-500.0,0.00033972,2]
[310170770,1704387060042,-500.0,0.00033972,2]
[310170771,1704387060051,-150.0,0.00033972,2]
[310170772,1704387060061,-500.0,0.00033972,2]
[310170773,1704387060070,-447.36592892,0.00033972,2]
[310170774,1704387060080,-174.93392726,0.00033972,2]
[310170775,1704387060090,-500.0,0.00033972,2]
[310170776,1704387060099,-500.0,0.00033972,2]
[310170777,1704387060112,-500.0,0.00033972,2]
[310170778,1704387060121,-642.61545113,0.00033972,2]
[310170779,1704387060130,-500.0,0.00033972,2]
[310170780,1704387060141,-500.0,0.00033972,2]
[310170781,1704387060150,-500.0,0.00033972,2]
[310170782,1704387060160,-500.0,0.00033972,2]
[310170783,1704387060169,-500.0,0.00033972,2]
[310170784,1704387060181,-500.0,0.00033972,2]
[310170785,1704387060190,-500.0,0.00033972,2]
[310170786,1704387060200,-203.08651901,0.00033972,2]
[310170787,1704387060209,-500.0,0.00033972,2]
[310170788,1704387060217,-500.0,0.00033972,2]
[310170789,1704387060227,-500.0,0.00033972,2]
[310170790,1704387060236,-507.69,0.00033972,2]
[310170791,1704387060245,-500.0,0.00033972,2]
[310170792,1704387060254,-500.0,0.00033972,2]
[310170793,1704387060264,-500.0,0.00033972,2]
[310170794,1704387060273,-500.0,0.00033972,2]
[310170795,1704387060282,-500.0,0.00033972,2]
[310170796,1704387060292,-596.38670396,0.00033972,2]
[310170797,1704387060303,-500.0,0.00033972,2]
[310170798,1704387060312,-500.0,0.00033972,2]
[310170799,1704387060323,-500.0,0.00033972,2]
[310170800,1704387060334,-500.0,0.00033972,2]
[310170801,1704387060345,-238.73030324,0.00033972,2]
[310170802,1704387060356,-500.0,0.00033972,2]
[310170803,1704387060366,-500.0,0.00033972,2]
[310170804,1704387060376,-290.02628005,0.00033972,2]
[310170805,1704387060387,-500.0,0.00033972,2]
[310170806,1704387060400,-500.0,0.00033972,2]
[310170807,1704387060411,-500.0,0.00033972,2]
[310170808,1704387060421,-500.0,0.00033972,2]
[310170809,1704387060431,-500.0,0.00033972,2]
[310170810,1704387060442,-500.0,0.00033972,2]
[310170811,1704387060451,-500.0,0.00033972,2]
[310170812,1704387060460,-500.0,0.00033972,2]
[310170813,1704387060470,-253.54179755,0.00033972,2]
[310170814,1704387060480,-500.0,0.00033972,2]
[310170815,1704387060489,-500.0,0.00033972,2]
[310170816,1704387060499,-500.0,0.00033972,2]
[310170817,1704387060509,-500.0,0.00033972,2]
[310170818,1704387060522,-500.0,0.00033972,2]
[310170819,1704387060531,-500.0,0.00033972,2]
[310170820,1704387060540,-500.0,0.00033972,2]
[310170821,1704387060550,-556.14,0.00033972,2]
[310170822,1704387060559,-500.0,0.00033972,2]
[310170823,1704387060569,-500.0,0.00033972,2]
[310170824,1704387060580,-500.0,0.00033972,2]
[310170825,1704387060591,-500.0,0.00033972,2]
[310170826,1704387060603,-578.06154454,0.00033972,2]
[310170827,1704387060613,-519.6,0.00033972,2]
[310170828,1704387060622,-500.0,0.00033972,2]
[310170829,1704387060633,-1142.06,0.00033972,2]
[310170830,1704387060643,-965.52,0.00033972,2]
[310170831,1704387060654,-500.0,0.00033972,2]
[310170832,1704387060666,-500.0,0.00033972,2]
[310170833,1704387060677,-1649.27,0.00033972,2]
[310170834,1704387060686,-500.0,0.00033972,2]
[310170835,1704387060697,-500.0,0.00033972,2]
[310170836,1704387060707,-500.0,0.00033972,2]
[310170837,1704387060718,-500.0,0.00033972,2]
[310170838,1704387060728,-3512.08,0.00033972,2]
[310170839,1704387060740,-500.0,0.00033972,2]
[310170840,1704387060750,-500.0,0.00033972,2]
[310170841,1704387060760,-241.50160601,0.00033972,2]
[310170842,1704387060769,-1571.18,0.00033972,2]
[310170843,1704387060780,-790.79,0.00033972,2]
[310170844,1704387060791,-1096.78,0.00033972,2]
[310170845,1704387060800,-500.0,0.00033972,2]
[310170846,1704387060810,-500.0,0.00033972,2]
[310170847,1704387060821,-500.0,0.00033972,2]
[310170848,1704387060831,-1597.25,0.00033972,2]
[310170849,1704387060841,-500.0,0.00033972,2]
[310170850,1704387060851,-500.0,0.00033972,2]
[310170851,1704387060867,-2242.23,0.00033972,2]
[310170852,1704387060878,-500.0,0.00033972,2]
[310170853,1704387060889,-500.0,0.00033972,2]
[310170854,1704387060899,-500.0,0.00033972,2]